[Event "Late-Titled-Tuesday-Blitz-April-23-2024"]
[Site "Chess.com"]
[Date "2024.04.23"]
[Round "8"]
[White "chess_sharparchitect"]
[Black "ImportedItalianMaple"]
[Result "0-1"]
[WhiteElo "2250"]
[BlackElo "2463"]
[TimeControl "180+1"]
[EndTime "15:30:02 PDT"]
[Termination "ImportedItalianMaple won on time"]

1. c4 {[%clk 0:03:00.9]} 1... g6 {[%clk 0:03:00.7]} 2. Nc3 {[%clk 0:03:00.3]}
2... Bg7 {[%clk 0:03:01.6]} 3. d4 {[%clk 0:02:59.6]} 3... d6 {[%clk 0:03:01.8]}
4. e4 {[%clk 0:02:58.8]} 4... Nc6 {[%clk 0:03:02.1]} 5. Be3 {[%clk 0:02:44]}
5... e5 {[%clk 0:03:01.1]} 6. d5 {[%clk 0:02:32.4]} 6... Nd4 {[%clk 0:02:58.3]}
7. Nge2 {[%clk 0:02:32.3]} 7... Nxe2 {[%clk 0:02:48.6]} 8. Bxe2 {[%clk
0:02:33.2]} 8... f5 {[%clk 0:02:48.4]} 9. exf5 {[%clk 0:02:18.1]} 9... Bxf5
{[%clk 0:02:48.3]} 10. Qd2 {[%clk 0:02:09.2]} 10... Nf6 {[%clk 0:02:39.9]} 11.
Bh6 {[%clk 0:01:57.1]} 11... Qd7 {[%clk 0:02:35.4]} 12. O-O {[%clk 0:01:40]}
12... O-O {[%clk 0:02:33.7]} 13. Rad1 {[%clk 0:01:33.9]} 13... Rae8 {[%clk
0:02:25.4]} 14. b4 {[%clk 0:01:26.7]} 14... Bxh6 {[%clk 0:02:06.5]} 15. Qxh6
{[%clk 0:01:27.6]} 15... Qg7 {[%clk 0:02:06.7]} 16. Qe3 {[%clk 0:01:20]} 16...
Ng4 {[%clk 0:01:55.6]} 17. Qxa7 {[%clk 0:01:15.8]} 17... e4 {[%clk 0:01:46.4]}
18. Qd4 {[%clk 0:01:05.9]} 18... Ne5 {[%clk 0:01:39]} 19. c5 {[%clk 0:00:57.4]}
19... Nd3 {[%clk 0:01:26.9]} 20. Qxg7+ {[%clk 0:00:50.7]} 20... Kxg7 {[%clk
0:01:27.8]} 21. cxd6 {[%clk 0:00:47.8]} 21... cxd6 {[%clk 0:01:27.3]} 22. g4
{[%clk 0:00:42.4]} 22... Bd7 {[%clk 0:01:24.2]} 23. Bxd3 {[%clk 0:00:42.2]}
23... exd3 {[%clk 0:01:25.1]} 24. Rxd3 {[%clk 0:00:41.9]} 24... Bxg4 {[%clk
0:01:16.1]} 25. Re3 {[%clk 0:00:34.8]} 25... Rc8 {[%clk 0:01:06.4]} 26. Rfe1
{[%clk 0:00:32]} 26... Rc4 {[%clk 0:00:51.1]} 27. Re7+ {[%clk 0:00:30.5]} 27...
Rf7 {[%clk 0:00:51.2]} 28. Rxf7+ {[%clk 0:00:30.1]} 28... Kxf7 {[%clk
0:00:52.1]} 29. Ne4 {[%clk 0:00:26.8]} 29... Rxb4 {[%clk 0:00:51.2]} 30. Nxd6+
{[%clk 0:00:27]} 30... Kf6 {[%clk 0:00:49]} 31. Ne4+ {[%clk 0:00:24.6]} 31...
Ke5 {[%clk 0:00:39.5]} 32. Nc3+ {[%clk 0:00:15.5]} 32... Kd4 {[%clk 0:00:39.8]}
33. Ne2+ {[%clk 0:00:10.9]} 33... Kxd5 {[%clk 0:00:38.7]} 34. Ng3 {[%clk
0:00:10.5]} 34... Bf3 {[%clk 0:00:34.9]} 35. h4 {[%clk 0:00:09.7]} 35... Rxh4
{[%clk 0:00:34.4]} 36. Re3 {[%clk 0:00:09.4]} 36... Rf4 {[%clk 0:00:30.1]} 37.
a3 {[%clk 0:00:08.9]} 37... b5 {[%clk 0:00:30.2]} 38. Kf1 {[%clk 0:00:08.9]}
38... h5 {[%clk 0:00:28.8]} 39. Kg1 {[%clk 0:00:09.2]} 39... h4 {[%clk
0:00:28.3]} 40. Nf1 {[%clk 0:00:09.3]} 40... g5 {[%clk 0:00:26.9]} 41. Kh2
{[%clk 0:00:09.5]} 41... g4 {[%clk 0:00:26.2]} 42. Nd2 {[%clk 0:00:10.1]} 42...
Bd1 {[%clk 0:00:24.1]} 43. Rd3+ {[%clk 0:00:10]} 43... Rd4 {[%clk 0:00:24.7]}
44. Rxd4+ {[%clk 0:00:07.7]} 44... Kxd4 {[%clk 0:00:25.6]} 45. Nf1 {[%clk
0:00:04.2]} 45... Be2 {[%clk 0:00:19.7]} 46. Ne3 {[%clk 0:00:03.9]} 46... g3+
{[%clk 0:00:20.4]} 47. Kg2 {[%clk 0:00:02]} 47... gxf2 {[%clk 0:00:20.1]} 48.
Kxf2 {[%clk 0:00:02.5]} 48... Bd3 {[%clk 0:00:18.7]} 0-1

[Event "Late-Titled-Tuesday-Blitz-April-23-2024"]
[Site "Chess.com"]
[Date "2024.04.23"]
[Round "8"]
[White "chessdjw"]
[Black "dolynachess"]
[Result "1-0"]
[WhiteElo "2784"]
[BlackElo "2540"]
[TimeControl "180+1"]
[EndTime "15:30:03 PDT"]
[Termination "chessdjw won by checkmate"]

1. d4 {[%clk 0:03:00.9]} 1... Nf6 {[%clk 0:02:59.6]} 2. c4 {[%clk 0:03:00.6]}
2... c5 {[%clk 0:02:59.9]} 3. e3 {[%clk 0:03:00]} 3... g6 {[%clk 0:02:59.6]} 4.
Nc3 {[%clk 0:03:00.1]} 4... Bg7 {[%clk 0:02:58.2]} 5. d5 {[%clk 0:02:59.8]} 5...
O-O {[%clk 0:02:58]} 6. Nf3 {[%clk 0:03:00]} 6... e6 {[%clk 0:02:58]} 7. Be2
{[%clk 0:02:50.6]} 7... exd5 {[%clk 0:02:58.1]} 8. cxd5 {[%clk 0:02:50.6]} 8...
d6 {[%clk 0:02:56.9]} 9. Nd2 {[%clk 0:02:50]} 9... Re8 {[%clk 0:02:54.9]} 10.
O-O {[%clk 0:02:49.3]} 10... Na6 {[%clk 0:02:55]} 11. h3 {[%clk 0:02:40.9]}
11... Nc7 {[%clk 0:02:54.5]} 12. e4 {[%clk 0:02:36.6]} 12... Rb8 {[%clk
0:02:44.2]} 13. a4 {[%clk 0:02:35.6]} 13... b6 {[%clk 0:02:37.5]} 14. Bb5 {[%clk
0:02:29.1]} 14... Bd7 {[%clk 0:02:23.9]} 15. Re1 {[%clk 0:02:27.6]} 15... a6
{[%clk 0:02:21.4]} 16. Bf1 {[%clk 0:02:12.1]} 16... b5 {[%clk 0:02:19.1]} 17. a5
{[%clk 0:02:12.5]} 17... b4 {[%clk 0:02:10.2]} 18. Na4 {[%clk 0:02:10.2]} 18...
Bxa4 {[%clk 0:02:08.1]} 19. Rxa4 {[%clk 0:02:11.1]} 19... Nb5 {[%clk 0:01:57.7]}
20. Bd3 {[%clk 0:02:09.6]} 20... Qd7 {[%clk 0:01:47.6]} 21. Nc4 {[%clk
0:02:05.4]} 21... Nd4 {[%clk 0:01:30.2]} 22. Nb6 {[%clk 0:01:54.5]} 22... Qb7
{[%clk 0:01:18.1]} 23. Bf4 {[%clk 0:01:51.2]} 23... Rbd8 {[%clk 0:01:15.2]} 24.
Qb1 {[%clk 0:00:58.1]} 24... Nd7 {[%clk 0:01:13.4]} 25. Nc4 {[%clk 0:00:29.8]}
25... Ne5 {[%clk 0:01:13.3]} 26. Bxe5 {[%clk 0:00:27.5]} 26... Bxe5 {[%clk
0:01:12.5]} 27. Nxe5 {[%clk 0:00:22.1]} 27... Rxe5 {[%clk 0:01:04.9]} 28. f4
{[%clk 0:00:18.6]} 28... Re7 {[%clk 0:01:04.3]} 29. Bc4 {[%clk 0:00:18.9]} 29...
Rde8 {[%clk 0:00:55.8]} 30. Qd3 {[%clk 0:00:18.8]} 30... Kg7 {[%clk 0:00:52.6]}
31. Bxa6 {[%clk 0:00:17.3]} 31... Qa7 {[%clk 0:00:52.1]} 32. Bc4 {[%clk
0:00:17.2]} 32... f5 {[%clk 0:00:50]} 33. e5 {[%clk 0:00:17.3]} 33... dxe5
{[%clk 0:00:47.7]} 34. fxe5 {[%clk 0:00:17.5]} 34... Rxe5 {[%clk 0:00:47.2]} 35.
Rxe5 {[%clk 0:00:17.9]} 35... Rxe5 {[%clk 0:00:48]} 36. Ra1 {[%clk 0:00:17.4]}
36... h5 {[%clk 0:00:32.3]} 37. Qg3 {[%clk 0:00:16]} 37... Ne2+ {[%clk
0:00:22.5]} 38. Bxe2 {[%clk 0:00:15.2]} 38... Rxe2 {[%clk 0:00:23.4]} 39. a6
{[%clk 0:00:11.2]} 39... c4+ {[%clk 0:00:23.4]} 40. Kh1 {[%clk 0:00:11.8]} 40...
Kh7 {[%clk 0:00:17.3]} 41. d6 {[%clk 0:00:10.3]} 41... Rxb2 {[%clk 0:00:14.6]}
42. Re1 {[%clk 0:00:10.3]} 42... Qxa6 {[%clk 0:00:06.2]} 43. Re7+ {[%clk
0:00:10.5]} 43... Kg8 {[%clk 0:00:03.5]} 44. Qxg6+ {[%clk 0:00:10]} 44... Kf8
{[%clk 0:00:02.3]} 45. Qf7# {[%clk 0:00:10]} 1-0

[Event "Late-Titled-Tuesday-Blitz-April-23-2024"]
[Site "Chess.com"]
[Date "2024.04.23"]
[Round "8"]
[White "IngOscarArdila"]
[Black "zano2023"]
[Result "1-0"]
[WhiteElo "2269"]
[BlackElo "2159"]
[TimeControl "180+1"]
[EndTime "15:30:06 PDT"]
[Termination "IngOscarArdila won by resignation"]

1. d3 {[%clk 0:03:00.9]} 1... e5 {[%clk 0:02:50.3]} 2. Nd2 {[%clk 0:03:01.8]}
2... Nf6 {[%clk 0:02:47.2]} 3. e4 {[%clk 0:03:02.7]} 3... d6 {[%clk 0:02:46.9]}
4. Ngf3 {[%clk 0:03:03.2]} 4... Be7 {[%clk 0:02:47.6]} 5. Be2 {[%clk 0:03:04.1]}
5... O-O {[%clk 0:02:47.8]} 6. O-O {[%clk 0:03:04.9]} 6... c6 {[%clk 0:02:48.4]}
7. c3 {[%clk 0:03:05.6]} 7... Nbd7 {[%clk 0:02:47.3]} 8. Qc2 {[%clk 0:03:06.5]}
8... Re8 {[%clk 0:02:47.5]} 9. Rd1 {[%clk 0:03:06.6]} 9... Nf8 {[%clk
0:02:48.2]} 10. Nf1 {[%clk 0:03:07]} 10... Ng6 {[%clk 0:02:48.9]} 11. Bg5 {[%clk
0:03:07]} 11... h6 {[%clk 0:02:47.5]} 12. Bd2 {[%clk 0:03:06]} 12... Bd7 {[%clk
0:02:44.3]} 13. Ng3 {[%clk 0:03:06.1]} 13... Qc8 {[%clk 0:02:44]} 14. a4 {[%clk
0:03:06]} 14... Ng4 {[%clk 0:02:29.7]} 15. b4 {[%clk 0:03:05.1]} 15... f5 {[%clk
0:02:27.2]} 16. exf5 {[%clk 0:03:03.9]} 16... Bxf5 {[%clk 0:02:27.1]} 17. Nxf5
{[%clk 0:03:04.3]} 17... Qxf5 {[%clk 0:02:26.4]} 18. h3 {[%clk 0:03:03.4]} 18...
Nf6 {[%clk 0:02:17.8]} 19. Be3 {[%clk 0:03:02.1]} 19... d5 {[%clk 0:02:15.3]}
20. Qd2 {[%clk 0:02:58.6]} 20... Kh7 {[%clk 0:02:13.1]} 21. Nh2 {[%clk
0:02:56.6]} 21... Nf4 {[%clk 0:01:57.3]} 22. Bxf4 {[%clk 0:02:46.9]} 22... exf4
{[%clk 0:01:56.8]} 23. Ng4 {[%clk 0:02:46]} 23... Bd6 {[%clk 0:01:50.4]} 24.
Nxf6+ {[%clk 0:02:44.5]} 24... Qxf6 {[%clk 0:01:50.4]} 25. Bf3 {[%clk 0:02:44]}
25... Re7 {[%clk 0:01:48.6]} 26. Re1 {[%clk 0:02:44]} 26... Rae8 {[%clk
0:01:48.6]} 27. d4 {[%clk 0:02:43.3]} 27... Qf5 {[%clk 0:01:43.7]} 28. Bg4
{[%clk 0:02:39.7]} 28... Qf6 {[%clk 0:01:37.4]} 29. Rxe7 {[%clk 0:02:36.2]}
29... Qxe7 {[%clk 0:01:34.7]} 30. Bf3 {[%clk 0:02:34.2]} 30... g6 {[%clk
0:01:34.1]} 31. a5 {[%clk 0:02:33]} 31... Kg7 {[%clk 0:01:32.3]} 32. Kf1 {[%clk
0:02:33.3]} 32... h5 {[%clk 0:01:24.2]} 33. Rd1 {[%clk 0:02:31.5]} 33... Qe6
{[%clk 0:01:20.1]} 34. Qd3 {[%clk 0:02:25.8]} 34... Kf6 {[%clk 0:01:17.2]} 35.
Qd2 {[%clk 0:02:25]} 35... Qe7 {[%clk 0:01:12.5]} 36. Qb2 {[%clk 0:02:23.2]}
36... Qe6 {[%clk 0:01:10.7]} 37. b5 {[%clk 0:02:16.5]} 37... Qd7 {[%clk
0:01:09.2]} 38. b6 {[%clk 0:02:15.8]} 38... a6 {[%clk 0:01:04.7]} 39. Qd2 {[%clk
0:02:03.9]} 39... Qf5 {[%clk 0:01:04.2]} 40. Kg1 {[%clk 0:01:58.1]} 40... Re7
{[%clk 0:01:03.9]} 41. Re1 {[%clk 0:01:56.3]} 41... Rxe1+ {[%clk 0:01:03]} 42.
Qxe1 {[%clk 0:01:57.2]} 42... Qe6 {[%clk 0:01:03.2]} 43. Qd2 {[%clk 0:01:56.6]}
43... Qf5 {[%clk 0:01:02.9]} 44. Kf1 {[%clk 0:01:54.1]} 44... Qb1+ {[%clk
0:01:02.5]} 45. Bd1 {[%clk 0:01:50.6]} 45... Qb5+ {[%clk 0:01:01.7]} 46. Kg1
{[%clk 0:01:49.3]} 46... Qxa5 {[%clk 0:01:00.9]} 47. Qd3 {[%clk 0:01:29.6]}
47... Qxb6 {[%clk 0:00:57]} 48. Bc2 {[%clk 0:01:29.5]} 48... Ke7 {[%clk
0:00:34.9]} 49. Qxg6 {[%clk 0:01:29.1]} 49... Kd7 {[%clk 0:00:35.1]} 50. Bf5+
{[%clk 0:01:23]} 50... Kc7 {[%clk 0:00:32.9]} 51. Qe8 {[%clk 0:01:22.3]} 51...
Qb2 {[%clk 0:00:20.6]} 52. Qd7+ {[%clk 0:01:19]} 52... Kb6 {[%clk 0:00:20.8]}
53. Qxd6 {[%clk 0:01:18.6]} 53... Qxc3 {[%clk 0:00:20.8]} 54. Qxf4 {[%clk
0:01:15.2]} 54... a5 {[%clk 0:00:20.4]} 55. Qb8 {[%clk 0:01:07.6]} 55... a4
{[%clk 0:00:20.1]} 56. Bc8 {[%clk 0:01:07.7]} 56... Qe1+ {[%clk 0:00:18.1]} 57.
Kh2 {[%clk 0:01:07.2]} 57... Qxf2 {[%clk 0:00:18.4]} 58. Qxb7+ {[%clk
0:01:07.5]} 58... Ka5 {[%clk 0:00:19.1]} 59. Qa7+ {[%clk 0:01:06.4]} 59... Kb4
{[%clk 0:00:19.1]} 60. Qc5+ {[%clk 0:01:06.4]} 60... Kb3 {[%clk 0:00:19]} 61.
Qb6+ {[%clk 0:00:59.6]} 61... Ka3 {[%clk 0:00:17.8]} 62. Qc7 {[%clk 0:00:56.8]}
62... Kb4 {[%clk 0:00:16.2]} 63. Qd6+ {[%clk 0:00:53.1]} 63... Kb3 {[%clk
0:00:16.3]} 64. Bd7 {[%clk 0:00:52.4]} 64... a3 {[%clk 0:00:15.7]} 65. Bxc6
{[%clk 0:00:52.2]} 65... a2 {[%clk 0:00:15.2]} 66. Bxd5+ {[%clk 0:00:52.2]}
66... Kb2 {[%clk 0:00:15]} 67. Qb4+ {[%clk 0:00:51.1]} 67... Ka1 {[%clk
0:00:15.1]} 68. Qc3+ {[%clk 0:00:49.9]} 68... Kb1 {[%clk 0:00:14.4]} 69. Qb3+
{[%clk 0:00:49.8]} 69... Ka1 {[%clk 0:00:14.5]} 70. Qxa2+ {[%clk 0:00:49.6]} 1-0

[Event "Late-Titled-Tuesday-Blitz-April-23-2024"]
[Site "Chess.com"]
[Date "2024.04.23"]
[Round "8"]
[White "Jahonas"]
[Black "Fh2411"]
[Result "0-1"]
[WhiteElo "2395"]
[BlackElo "2555"]
[TimeControl "180+1"]
[EndTime "15:30:07 PDT"]
[Termination "Fh2411 won by resignation"]

1. d4 {[%clk 0:03:00.9]} 1... d5 {[%clk 0:02:58.8]} 2. Nf3 {[%clk 0:03:01.1]}
2... c6 {[%clk 0:02:59.3]} 3. g3 {[%clk 0:03:00.7]} 3... Bf5 {[%clk 0:02:59.2]}
4. Bg2 {[%clk 0:03:01.1]} 4... e6 {[%clk 0:02:59.9]} 5. O-O {[%clk 0:03:01.3]}
5... Nf6 {[%clk 0:03:00.7]} 6. c3 {[%clk 0:03:01.8]} 6... Be7 {[%clk 0:03:00.2]}
7. Bf4 {[%clk 0:03:00]} 7... O-O {[%clk 0:03:00.4]} 8. Nbd2 {[%clk 0:02:59]}
8... Nbd7 {[%clk 0:02:58.9]} 9. Nh4 {[%clk 0:02:58.9]} 9... Bg4 {[%clk 0:02:48]}
10. h3 {[%clk 0:02:58.2]} 10... Bh5 {[%clk 0:02:48.7]} 11. g4 {[%clk 0:02:53.6]}
11... Ne8 {[%clk 0:02:45.1]} 12. Nhf3 {[%clk 0:02:50.5]} 12... Bg6 {[%clk
0:02:44.9]} 13. Ne5 {[%clk 0:02:46.9]} 13... Nxe5 {[%clk 0:02:42.8]} 14. Bxe5
{[%clk 0:02:47.2]} 14... Nd6 {[%clk 0:02:24.5]} 15. Qb3 {[%clk 0:02:35.2]} 15...
Qd7 {[%clk 0:02:18.8]} 16. Rae1 {[%clk 0:02:33.3]} 16... f6 {[%clk 0:02:09.7]}
17. Bxd6 {[%clk 0:02:27]} 17... Bxd6 {[%clk 0:02:09.5]} 18. e4 {[%clk
0:02:27.2]} 18... Bf4 {[%clk 0:02:09.2]} 19. Re2 {[%clk 0:02:01.3]} 19... Rf7
{[%clk 0:01:50.8]} 20. exd5 {[%clk 0:01:59.7]} 20... exd5 {[%clk 0:01:50.6]} 21.
Nf3 {[%clk 0:01:51.2]} 21... Bd3 {[%clk 0:01:48.7]} 22. Rfe1 {[%clk 0:01:48.9]}
22... Bxe2 {[%clk 0:01:48.7]} 23. Rxe2 {[%clk 0:01:48.4]} 23... Re8 {[%clk
0:01:45.4]} 24. Bf1 {[%clk 0:01:47.5]} 24... Rfe7 {[%clk 0:01:37.7]} 25. Rxe7
{[%clk 0:01:46.9]} 25... Rxe7 {[%clk 0:01:38.5]} 26. Kg2 {[%clk 0:01:45.9]}
26... g6 {[%clk 0:01:31.7]} 27. Bd3 {[%clk 0:01:44.6]} 27... Kg7 {[%clk
0:01:31.3]} 28. Qc2 {[%clk 0:01:43]} 28... Bc7 {[%clk 0:01:21.9]} 29. a4 {[%clk
0:01:10.2]} 29... Qd6 {[%clk 0:01:20.7]} 30. Qb3 {[%clk 0:01:07.6]} 30... Bb8
{[%clk 0:01:16.5]} 31. a5 {[%clk 0:01:06.6]} 31... a6 {[%clk 0:01:15.4]} 32. Qc2
{[%clk 0:01:02.7]} 32... c5 {[%clk 0:01:04.1]} 33. dxc5 {[%clk 0:00:59]} 33...
Qxc5 {[%clk 0:01:05]} 34. Nd4 {[%clk 0:00:57.5]} 34... Be5 {[%clk 0:01:04.3]}
35. Nf3 {[%clk 0:00:56.9]} 35... Qxa5 {[%clk 0:00:53]} 36. h4 {[%clk 0:00:51]}
36... Qc7 {[%clk 0:00:40.8]} 37. h5 {[%clk 0:00:49.6]} 37... Qd7 {[%clk
0:00:41.2]} 38. Kh3 {[%clk 0:00:45.3]} 38... gxh5 {[%clk 0:00:41.2]} 39. Bf5
{[%clk 0:00:44.7]} 39... hxg4+ {[%clk 0:00:38.5]} 40. Bxg4 {[%clk 0:00:44.6]}
40... Qe8 {[%clk 0:00:37.3]} 41. Nh4 {[%clk 0:00:43.7]} 41... Kh8 {[%clk
0:00:33.5]} 42. Qf5 {[%clk 0:00:39.9]} 42... Rg7 {[%clk 0:00:30.6]} 43. f4
{[%clk 0:00:39.5]} 43... Bc7 {[%clk 0:00:28]} 44. Qxf6 {[%clk 0:00:39.8]} 44...
Bd8 {[%clk 0:00:26.9]} 45. Qh6 {[%clk 0:00:28.4]} 45... Bxh4 {[%clk 0:00:22.9]}
46. Qxh4 {[%clk 0:00:26.4]} 46... Qe3+ {[%clk 0:00:21.8]} 47. Kh2 {[%clk
0:00:25.3]} 47... Qxf4+ {[%clk 0:00:21.9]} 48. Kh3 {[%clk 0:00:25.7]} 48... Qf1+
{[%clk 0:00:20.4]} 49. Kh2 {[%clk 0:00:25]} 49... Qf4+ {[%clk 0:00:19.5]} 50.
Kh3 {[%clk 0:00:25.1]} 50... Qf7 {[%clk 0:00:19]} 51. Qd8+ {[%clk 0:00:19.9]}
51... Qg8 {[%clk 0:00:18.9]} 52. Bf5 {[%clk 0:00:16.2]} 52... Qxd8 {[%clk
0:00:18.5]} 0-1

[Event "Late-Titled-Tuesday-Blitz-April-23-2024"]
[Site "Chess.com"]
[Date "2024.04.23"]
[Round "8"]
[White "Good_Knight_Kiss"]
[Black "Romkachess"]
[Result "1-0"]
[WhiteElo "2458"]
[BlackElo "2624"]
[TimeControl "180+1"]
[EndTime "15:30:08 PDT"]
[Termination "Good_Knight_Kiss won on time"]

1. e4 {[%clk 0:03:00.9]} 1... e5 {[%clk 0:02:56.8]} 2. Nf3 {[%clk 0:03:00.4]}
2... Nc6 {[%clk 0:02:52.1]} 3. Bb5 {[%clk 0:02:59.6]} 3... a6 {[%clk 0:02:49.7]}
4. Ba4 {[%clk 0:02:59.4]} 4... Nf6 {[%clk 0:02:49.3]} 5. O-O {[%clk 0:02:58.7]}
5... Be7 {[%clk 0:02:46.2]} 6. Re1 {[%clk 0:02:58.1]} 6... b5 {[%clk 0:02:36.5]}
7. Bb3 {[%clk 0:02:57.2]} 7... d6 {[%clk 0:02:33.3]} 8. c3 {[%clk 0:02:56]} 8...
O-O {[%clk 0:02:32.1]} 9. h3 {[%clk 0:02:55.8]} 9... Nb8 {[%clk 0:02:26.4]} 10.
d4 {[%clk 0:02:55.6]} 10... Nbd7 {[%clk 0:02:26.6]} 11. Nbd2 {[%clk 0:02:55.4]}
11... Bb7 {[%clk 0:02:26.5]} 12. Bc2 {[%clk 0:02:55.4]} 12... c5 {[%clk
0:02:26.4]} 13. d5 {[%clk 0:02:52.3]} 13... Re8 {[%clk 0:02:26.5]} 14. Nf1
{[%clk 0:02:50.7]} 14... Bf8 {[%clk 0:02:25.7]} 15. Ne3 {[%clk 0:02:49.7]} 15...
g6 {[%clk 0:02:25.8]} 16. Nh2 {[%clk 0:02:49.1]} 16... Bg7 {[%clk 0:02:25.2]}
17. Qf3 {[%clk 0:02:46]} 17... h5 {[%clk 0:02:07.9]} 18. Nhf1 {[%clk 0:02:35.6]}
18... c4 {[%clk 0:02:03]} 19. Ng3 {[%clk 0:02:34.1]} 19... Bf8 {[%clk
0:01:28.8]} 20. Nef1 {[%clk 0:01:58.6]} 20... Nc5 {[%clk 0:01:21.8]} 21. Bg5
{[%clk 0:01:46.6]} 21... Be7 {[%clk 0:01:21]} 22. h4 {[%clk 0:01:20.9]} 22...
Ng4 {[%clk 0:01:17.5]} 23. Ne3 {[%clk 0:00:56.9]} 23... Nxe3 {[%clk 0:00:58.8]}
24. Bxe3 {[%clk 0:00:54.6]} 24... Nd7 {[%clk 0:00:44.5]} 25. b3 {[%clk
0:00:22.6]} 25... cxb3 {[%clk 0:00:42.3]} 26. axb3 {[%clk 0:00:23.5]} 26... Rc8
{[%clk 0:00:41.1]} 27. Ne2 {[%clk 0:00:21]} 27... Bxh4 {[%clk 0:00:39.4]} 28. g3
{[%clk 0:00:16.9]} 28... Bg5 {[%clk 0:00:39.2]} 29. Kg2 {[%clk 0:00:16.9]} 29...
Bxe3 {[%clk 0:00:39]} 30. Qxe3 {[%clk 0:00:16.6]} 30... Qf6 {[%clk 0:00:19.5]}
31. Rh1 {[%clk 0:00:13.7]} 31... Nf8 {[%clk 0:00:13.9]} 32. Rh4 {[%clk
0:00:12.2]} 32... Rc7 {[%clk 0:00:10.7]} 33. Rah1 {[%clk 0:00:11.1]} 33... Bc8
{[%clk 0:00:10.5]} 34. f3 {[%clk 0:00:10.2]} 34... Bd7 {[%clk 0:00:07.9]} 35.
Qb6 {[%clk 0:00:06.2]} 35... Rec8 {[%clk 0:00:06]} 36. Qxa6 {[%clk 0:00:05.6]}
36... Rxc3 {[%clk 0:00:05]} 37. Nxc3 {[%clk 0:00:05]} 37... Rxc3 {[%clk
0:00:05.9]} 38. Bd1 {[%clk 0:00:05]} 38... Qg5 {[%clk 0:00:06.1]} 39. Qb6 {[%clk
0:00:02.2]} 39... Qd2+ {[%clk 0:00:04.7]} 40. Qf2 {[%clk 0:00:02.8]} 40... Qg5
{[%clk 0:00:04.1]} 41. g4 {[%clk 0:00:02]} 41... hxg4 {[%clk 0:00:02.2]} 42.
Rh8+ {[%clk 0:00:01.6]} 42... Kg7 {[%clk 0:00:02.7]} 43. Qh4 {[%clk 0:00:01.9]}
43... gxf3+ {[%clk 0:00:01.9]} 44. Kf1 {[%clk 0:00:02.2]} 44... Qg2+ {[%clk
0:00:01.4]} 45. Ke1 {[%clk 0:00:02.6]} 1-0

[Event "Late-Titled-Tuesday-Blitz-April-23-2024"]
[Site "Chess.com"]
[Date "2024.04.23"]
[Round "8"]
[White "Oleksandr_Bortnyk"]
[Black "h4parah5"]
[Result "1-0"]
[WhiteElo "3123"]
[BlackElo "3036"]
[TimeControl "180+1"]
[EndTime "15:30:18 PDT"]
[Termination "Oleksandr_Bortnyk won by resignation"]

1. e4 {[%clk 0:02:57.9]} 1... e5 {[%clk 0:02:59.4]} 2. Nf3 {[%clk 0:02:44.7]}
2... Nc6 {[%clk 0:02:59.1]} 3. Bb5 {[%clk 0:02:44.7]} 3... a6 {[%clk 0:02:58.9]}
4. Ba4 {[%clk 0:02:45.2]} 4... Nf6 {[%clk 0:02:58]} 5. Nc3 {[%clk 0:02:45]} 5...
Bc5 {[%clk 0:02:56.7]} 6. O-O {[%clk 0:02:41]} 6... O-O {[%clk 0:02:42.6]} 7.
Bxc6 {[%clk 0:02:21.4]} 7... dxc6 {[%clk 0:02:43.5]} 8. h3 {[%clk 0:02:20.4]}
8... Re8 {[%clk 0:02:39.3]} 9. d3 {[%clk 0:02:20.5]} 9... Nd7 {[%clk 0:02:37]}
10. Be3 {[%clk 0:02:20.4]} 10... Bf8 {[%clk 0:02:36.4]} 11. Ne2 {[%clk
0:02:19.1]} 11... f6 {[%clk 0:02:35]} 12. Qd2 {[%clk 0:02:11.6]} 12... c5 {[%clk
0:02:28.2]} 13. g4 {[%clk 0:02:07.9]} 13... Nb8 {[%clk 0:02:17.1]} 14. Ng3
{[%clk 0:02:00.9]} 14... Nc6 {[%clk 0:02:16.2]} 15. c3 {[%clk 0:02:01.3]} 15...
Be6 {[%clk 0:02:07.2]} 16. b3 {[%clk 0:01:50.2]} 16... a5 {[%clk 0:02:04.6]} 17.
Qc2 {[%clk 0:01:46.8]} 17... a4 {[%clk 0:01:59.9]} 18. Nd2 {[%clk 0:01:45.1]}
18... Qd7 {[%clk 0:01:58.8]} 19. Nf3 {[%clk 0:01:05.4]} 19... Red8 {[%clk
0:01:52.8]} 20. Rad1 {[%clk 0:00:57.3]} 20... axb3 {[%clk 0:01:49.5]} 21. axb3
{[%clk 0:00:58.2]} 21... Ra3 {[%clk 0:01:49.2]} 22. c4 {[%clk 0:00:58.7]} 22...
Rda8 {[%clk 0:01:43.4]} 23. Kh2 {[%clk 0:00:52.1]} 23... Ra2 {[%clk 0:01:41.8]}
24. Qb1 {[%clk 0:00:51.8]} 24... Nd4 {[%clk 0:01:30.1]} 25. Bxd4 {[%clk
0:00:47.1]} 25... cxd4 {[%clk 0:01:31]} 26. b4 {[%clk 0:00:46.6]} 26... R2a4
{[%clk 0:01:27.4]} 27. b5 {[%clk 0:00:46.4]} 27... Rb4 {[%clk 0:01:26.1]} 28.
Qc1 {[%clk 0:00:44.9]} 28... Rb3 {[%clk 0:01:23.6]} 29. Rg1 {[%clk 0:00:42.7]}
29... Ra2 {[%clk 0:01:19.3]} 30. Rd2 {[%clk 0:00:38.4]} 30... Rxd2 {[%clk
0:01:10.2]} 31. Qxd2 {[%clk 0:00:38.3]} 31... Bxc4 {[%clk 0:01:09.6]} 32. Nxe5
{[%clk 0:00:33.3]} 32... fxe5 {[%clk 0:01:09.3]} 33. dxc4 {[%clk 0:00:34]} 33...
Qf7 {[%clk 0:01:09.4]} 34. Nf5 {[%clk 0:00:22.4]} 34... Qxc4 {[%clk 0:01:01.1]}
35. Qg5 {[%clk 0:00:22.4]} 35... g6 {[%clk 0:00:43.2]} 36. Qd8 {[%clk
0:00:17.2]} 36... Rf3 {[%clk 0:00:17.2]} 37. Rg2 {[%clk 0:00:05.6]} 37... Rf4
{[%clk 0:00:14.2]} 38. Ne7+ {[%clk 0:00:05]} 38... Kg7 {[%clk 0:00:12.8]} 39.
Nd5 {[%clk 0:00:05.9]} 39... Qc5 {[%clk 0:00:10.1]} 40. Nxf4 {[%clk 0:00:04.8]}
40... exf4 {[%clk 0:00:09.3]} 41. Qd7+ {[%clk 0:00:05.1]} 41... Kg8 {[%clk
0:00:08.4]} 42. f3 {[%clk 0:00:04.2]} 42... Qc3 {[%clk 0:00:05.4]} 43. Qd5+
{[%clk 0:00:03.1]} 43... Kg7 {[%clk 0:00:05.3]} 44. Qe5+ {[%clk 0:00:03.7]}
44... Kg8 {[%clk 0:00:05.6]} 45. Qd5+ {[%clk 0:00:03.9]} 45... Kg7 {[%clk
0:00:05.3]} 46. e5 {[%clk 0:00:04.6]} 46... Qe3 {[%clk 0:00:04.1]} 47. Qd7+
{[%clk 0:00:03.7]} 47... Kg8 {[%clk 0:00:03.8]} 48. Qd5+ {[%clk 0:00:03.8]}
48... Kg7 {[%clk 0:00:03.6]} 49. b6 {[%clk 0:00:04.3]} 49... cxb6 {[%clk
0:00:03.5]} 50. Qd7+ {[%clk 0:00:03.7]} 50... Kg8 {[%clk 0:00:03.7]} 51. Qd5+
{[%clk 0:00:04.3]} 51... Kg7 {[%clk 0:00:04.1]} 52. e6 {[%clk 0:00:05.2]} 52...
d3 {[%clk 0:00:03.9]} 53. Qd7+ {[%clk 0:00:05.1]} 53... Kg8 {[%clk 0:00:03.8]}
54. Qf7+ {[%clk 0:00:05.3]} 1-0